bitfinex/quotes_SOLUSD_20260203
["timestamp","ask_amount","ask_price","bid_price","bid_amount"]
[1770144367716,1.0161037,97.499,97.441,4.29820729]
[1770144368417,10.52205818,97.48,97.441,4.29820729]
[1770144368620,10.52205818,97.47,97.441,4.29820729]
[1770144368822,10.52205818,97.46,97.428,4.29820729]
[1770144369224,1.0161037,97.465,97.42,0.1]
[1770144369428,10.52205818,97.44,97.42,0.1]
[1770144369722,1.0161037,97.429,97.401,19.40684004]
[1770144369927,1.0161037,97.429,97.367,5.31834133]
[1770144369928,10.52205818,97.41,97.367,5.31834133]
[1770144370117,10.52205818,97.41,97.365,4.29820729]
[1770144370338,1.0161037,97.418,97.365,4.29820729]
[1770144370339,10.52205818,97.4,97.365,4.29820729]
[1770144370508,1.0161037,97.418,97.365,4.29820729]
[1770144370710,10.52205818,97.4,97.365,4.29820729]
[1770144371223,1.0161037,97.418,97.365,4.29820729]
[1770144371428,10.52205818,97.39,97.365,4.29820729]
[1770144371667,4.27527085,97.437,97.334,17.26546497]
[1770144371668,1.0161037,97.397,97.336,4.29820729]
[1770144371940,1.0161037,97.408,97.351,4.29820729]
[1770144372144,1.0161037,97.421,97.351,4.29820729]
[1770144372332,1.0161037,97.421,97.361,4.29820729]
[1770144372537,10.52205818,97.42,97.371,4.29820729]
[1770144372740,10.52205818,97.42,97.331,25.68535998]
[1770144372741,10.52205818,97.41,97.361,4.29820729]
[1770144372931,10.52205818,97.4,97.361,4.29820729]
[1770144373441,11.53816188,97.42,97.361,4.29820729]
[1770144373614,10.52205818,97.41,97.361,4.29820729]
[1770144373822,1.0161037,97.42,97.361,4.29820729]
[1770144374033,1.0161037,97.433,97.371,4.29820729]
[1770144374233,10.52205818,97.39,97.341,4.29820729]
[1770144374540,1.0161037,97.408,97.341,4.29820729]
[1770144374541,10.52205818,97.4,97.351,4.29820729]
[1770144374926,10.52205818,97.39,97.351,4.29820729]
[1770144375124,1.0161037,97.436,97.351,4.29820729]
[1770144375384,10.52205818,97.52,97.338,10.27348003]
[1770144375385,1.0161037,97.42,97.371,4.29820729]
[1770144375523,1.0161037,97.419,97.371,4.29820729]
[1770144376252,10.52205818,97.41,97.371,4.29820729]
[1770144376550,10.52205818,97.42,97.371,4.29820729]
[1770144376845,1.0161037,97.416,97.359,4.29820729]
[1770144377028,10.52205818,97.41,97.361,4.29820729]
[1770144377340,10.52205818,97.42,97.371,4.29820729]
[1770144377837,28.52,97.493,97.341,0.14216157]
[1770144377838,10.52205818,97.45,97.401,4.29820729]
[1770144378228,10.52205818,97.45,97.372,38.78989278]
[1770144378229,1.0161037,97.439,97.384,0.14216157]
[1770144378546,10.52205818,97.43,97.391,4.29820729]
[1770144378836,1.0161037,97.439,97.391,4.29820729]
[1770144379418,10.52205818,97.44,97.391,4.29820729]
[1770144380234,1.0161037,97.451,97.391,4.29820729]
[1770144380462,10.52205818,97.42,97.374,4.18774845]
[1770144380619,1.0161037,97.457,97.401,4.18774845]
[1770144380824,10.52205818,97.45,97.401,4.18774845]
[1770144381028,1.0161037,97.495,97.431,4.18774845]
[1770144381231,1.0161037,97.495,97.422,0.14216157]
[1770144381232,10.52205818,97.48,97.451,4.18774845]
[1770144381427,10.52205818,97.47,97.439,4.18774845]
[1770144381653,10.52205818,97.48,97.439,4.18774845]
[1770144382047,10.52205818,97.48,97.422,0.14216157]
[1770144382048,10.52205818,97.49,97.451,4.18774845]
[1770144382454,10.52205818,97.48,97.451,4.18774845]
[1770144382622,1.0161037,97.495,97.451,4.18774845]
[1770144382828,10.52205818,97.49,97.451,4.18774845]
[1770144383055,10.52205818,97.52,97.471,4.18774845]
[1770144383549,10.52205818,97.51,97.471,4.18774845]
[1770144383747,10.52205818,97.49,97.471,4.18774845]
[1770144383955,10.52205818,97.48,97.457,4.18774845]
[1770144384846,1.0161037,97.504,97.457,4.18774845]
[1770144385050,10.52205818,97.49,97.457,4.18774845]
[1770144385438,10.52205818,97.48,97.457,4.18774845]
[1770144385755,1.0161037,97.504,97.457,4.18774845]
[1770144385927,10.52205818,97.49,97.457,4.18774845]
[1770144386748,10.52205818,97.51,97.461,4.18774845]
[1770144387058,10.52205818,97.52,97.471,4.18774845]
[1770144387357,1.0161037,97.518,97.471,4.18774845]
[1770144387543,10.52205818,97.51,97.471,4.18774845]
[1770144389030,10.52205818,97.52,97.471,4.18774845]
[1770144389231,1.0161037,97.53,97.471,4.18774845]
[1770144389457,10.52205818,97.52,97.471,4.18774845]
[1770144389635,1.0161037,97.529,97.471,4.18774845]
[1770144389844,1.0161037,97.529,97.481,4.18774845]
[1770144390234,10.52205818,97.52,97.481,4.18774845]
[1770144390932,1.0161037,97.529,97.481,4.18774845]
[1770144391129,10.52205818,97.52,97.481,4.18774845]
[1770144391450,10.52205818,97.5,97.47,4.18774845]
[1770144391639,10.52205818,97.49,97.47,4.18774845]
[1770144391839,10.52205818,97.48,97.459,4.18774845]
[1770144392031,10.52205818,97.48,97.419,4.18774845]
[1770144392234,1.0161037,97.481,97.419,4.18774845]
[1770144392468,10.52205818,97.44,97.419,4.18774845]
[1770144392633,10.52205818,97.45,97.419,4.18774845]
[1770144392835,10.52205818,97.44,97.419,4.18774845]
[1770144393265,1.0161037,97.481,97.419,4.18774845]
[1770144393432,10.52205818,97.46,97.419,4.18774845]
[1770144394195,10.52205818,97.46,97.421,4.18774845]
[1770144394487,1.0161037,97.47,97.421,4.18774845]
[1770144394657,1.0161037,97.47,97.373,4.27527085]
[1770144394658,10.52205818,97.47,97.431,4.18774845]
[1770144394856,1.0161037,97.495,97.431,4.18774845]
[1770144394857,10.52205818,97.48,97.431,4.18774845]
[1770144395053,10.52205818,97.47,97.431,4.18774845]
[1770144395551,10.52205818,97.47,97.33,51.33966663]
[1770144395752,10.52205818,97.47,97.255,55.9778738]
[1770144395753,10.52205818,97.44,97.363,4.49999999]
[1770144396153,10.52205818,97.44,97.381,4.49999999]
[1770144396387,10.52205818,97.46,97.41,10.52205818]
[1770144396553,10.52205818,97.47,97.42,10.52205818]
[1770144396883,10.52205818,97.46,97.41,10.52205818]
[1770144397081,10.52205818,97.45,97.401,4.49999999]
[1770144397653,10.52205818,97.52,97.363,0.14216157]
[1770144397654,4.27527085,97.437,97.363,4.49999999]
[1770144397878,4.27527085,97.437,97.35,0.1]
[1770144397879,4.27527085,97.437,97.362,14.04035726]
[1770144398162,4.27527085,97.437,97.291,25.69600888]
[1770144398163,10.52205818,97.37,97.314,4.49999999]
[1770144398375,10.52205818,97.36,97.329,4.49999999]
[1770144398768,28.52,97.427,97.336,4.49999999]
[1770144399093,10.52205818,97.36,97.336,4.49999999]
[1770144399279,4.27527085,97.405,97.336,4.49999999]
[1770144399471,10.52205818,97.37,97.336,4.49999999]
[1770144399974,10.52205818,97.36,97.323,4.49999999]
[1770144400154,4.27527085,97.426,97.323,4.49999999]
[1770144400372,10.52205818,97.35,97.323,4.49999999]
[1770144400560,4.27527085,97.395,97.323,4.49999999]
[1770144400782,10.52205818,97.36,97.277,12.20642362]
[1770144400990,0.2482668,97.378,97.32,10.52205818]
[1770144401257,10.52205818,97.36,97.31,10.52205818]
[1770144401667,10.52205818,97.36,97.277,12.20642362]
[1770144401668,10.52205818,97.37,97.283,4.27527085]
[1770144401973,10.52205818,97.36,97.31,10.52205818]
[1770144402175,10.52205818,97.36,97.296,0.14216157]
[1770144402176,0.2482668,97.378,97.32,10.52205818]
[1770144402378,4.27527085,97.422,97.32,10.52205818]
[1770144402379,10.52205818,97.4,97.35,10.52205818]
[1770144402590,4.24922545,97.405,97.36,10.52205818]
[1770144402768,4.24922545,97.417,97.371,4.18774845]
[1770144402967,4.24922545,97.417,97.38,10.52205818]
[1770144403182,14.77128363,97.43,97.381,4.18774845]
[1770144403380,14.77128363,97.43,97.36,10.27105536]
[1770144403381,4.24922545,97.449,97.4,10.52205818]
[1770144403569,10.52205818,97.43,97.391,4.18774845]
[1770144403782,4.27527085,97.467,97.36,10.27105536]
[1770144403783,10.52205818,97.41,97.378,4.18774845]
[1770144404090,14.1074005,97.488,97.334,4.27527085]
[1770144404091,4.24922545,97.386,97.334,4.18774845]
[1770144404264,4.24922545,97.386,97.34,10.52205818]
[1770144404583,4.24922545,97.399,97.37,10.52205818]
[1770144404772,4.24922545,97.425,97.39,10.52205818]
[1770144404973,4.24922545,97.425,97.354,28.54]
[1770144405169,8.26395243,97.5,97.353,16.29683808]
[1770144405170,10.52205818,97.4,97.353,16.29683808]
[1770144405372,4.24922545,97.409,97.36,10.52205818]
[1770144405570,10.52205818,97.39,97.353,16.29683808]
[1770144405874,10.52205818,97.4,97.353,16.29683808]
[1770144406279,4.24922545,97.399,97.353,16.29683808]
[1770144406484,10.52205818,97.38,97.353,16.29683808]
[1770144407470,14.77128363,97.38,97.353,16.29683808]
[1770144407782,4.24922545,97.399,97.353,20.48458653]
[1770144407964,10.52205818,97.38,97.354,4.18774845]
[1770144408165,10.52205818,97.38,97.353,16.29683808]
[1770144408480,4.27527085,97.427,97.353,16.29683808]
[1770144408481,10.52205818,97.36,97.353,11.81582282]
[1770144408670,10.52205818,97.36,97.353,9.47399388]
[1770144408873,10.52205818,97.36,97.314,4.18774845]
[1770144409180,10.52205818,97.36,97.277,13.03747046]
[1770144409181,4.16466585,97.343,97.293,4.18774845]
[1770144409685,10.52205818,97.33,97.293,4.18774845]
[1770144409939,4.27527085,97.387,97.277,13.03747046]
[1770144409940,4.16466585,97.299,97.277,13.03747046]
[1770144410064,4.12301919,97.326,97.277,12.99540312]
[1770144410262,10.52205818,97.33,97.278,4.18774845]
[1770144410482,80.07599128,97.418,97.281,4.18774845]
[1770144410483,4.12301919,97.344,97.281,4.18774845]
[1770144410686,14.60384717,97.29,97.215,4.2667378]
[1770144410887,14.60384717,97.29,97.21,10.52205818]
[1770144410888,4.08178899,97.337,97.222,4.2667378]
[1770144411088,11.31844974,97.343,97.251,4.2667378]
[1770144411089,4.08178899,97.328,97.251,4.2667378]
[1770144411391,4.08178899,97.328,97.216,10.28637261]
[1770144411392,4.08178899,97.315,97.258,4.2667378]
[1770144411696,10.52205818,97.36,97.261,4.2667378]
[1770144411697,10.52205818,97.32,97.261,4.2667378]
[1770144411996,4.08178899,97.329,97.261,4.2667378]
[1770144411997,10.52205818,97.31,97.261,4.2667378]
[1770144412462,10.52205818,97.3,97.271,4.2667378]
[1770144412664,4.08178899,97.326,97.221,4.2667378]
[1770144412665,4.08178899,97.279,97.221,4.2667378]
[1770144412864,10.52205818,97.26,97.221,4.2667378]
[1770144413087,5.36086188,97.353,97.221,4.2667378]
[1770144413088,4.08178899,97.293,97.221,4.2667378]
[1770144413262,10.52205818,97.3,97.261,4.2667378]
[1770144413888,4.08178899,97.312,97.261,4.2667378]
[1770144414078,10.52205818,97.31,97.261,4.2667378]
[1770144414594,6.48567308,97.342,97.26,10.52205818]
[1770144414595,9.23886107,97.32,97.281,4.16902835]
[1770144414895,4.08178899,97.312,97.238,4.31118992]
[1770144415065,4.08178899,97.341,97.261,4.16902835]
[1770144415468,9.23886107,97.31,97.261,4.16902835]
[1770144416290,9.23886107,97.32,97.271,4.16902835]
[1770144416588,4.08178899,97.323,97.271,4.16902835]
[1770144416797,9.23886107,97.28,97.216,4.16902835]
[1770144417014,9.23886107,97.27,97.221,4.16902835]
[1770144417383,9.23886107,97.29,97.241,4.16902835]
[1770144417777,9.23886107,97.3,97.241,4.16902835]
[1770144418009,4.08178899,97.309,97.241,4.16902835]
[1770144418301,9.23886107,97.3,97.261,4.16902835]
[1770144418505,4.08178899,97.316,97.261,4.16902835]
[1770144418798,9.23886107,97.3,97.261,4.16902835]
[1770144419181,9.23886107,97.3,97.222,25.71434448]
[1770144419182,6.492062,97.322,97.21,4.16902835]
[1770144419382,9.23886107,97.27,97.221,4.16902835]
[1770144419785,4.08178899,97.284,97.221,4.16902835]
[1770144420106,9.23886107,97.27,97.221,4.16902835]
[1770144420290,9.23886107,97.28,97.231,4.16902835]
[1770144420492,9.23886107,97.27,97.231,4.16902835]
[1770144420789,9.23886107,97.28,97.231,4.16902835]
[1770144420985,9.23886107,97.29,97.241,4.16902835]
[1770144421800,6.49613956,97.313,97.251,4.16902835]
[1770144421801,9.23886107,97.31,97.251,4.16902835]
[1770144422081,1.99613956,97.313,97.291,4.16902835]
[1770144422280,1.99613956,97.313,97.29,9.23886107]
[1770144422281,4.27943197,97.344,97.301,4.16902835]
[1770144422497,4.27943197,97.358,97.301,4.16902835]
[1770144422701,4.27943197,97.358,97.3,9.23886107]
[1770144422702,4.27943197,97.358,97.311,4.16902835]
[1770144423088,4.27943197,97.349,97.298,4.16902835]
[1770144423289,9.23886107,97.34,97.298,4.16902835]
[1770144423586,4.27943197,97.349,97.301,4.16902835]
[1770144424406,4.27943197,97.369,97.301,4.16902835]
[1770144424699,6.48993585,97.379,97.281,4.16902835]
[1770144424700,9.23886107,97.33,97.281,4.16902835]
[1770144424900,9.23886107,97.31,97.281,4.16902835]
[1770144425096,9.23886107,97.32,97.281,4.16902835]
[1770144425300,4.27943197,97.341,97.301,4.16902835]
[1770144425523,4.27943197,97.341,97.255,4.16902835]
[1770144425709,4.27943197,97.341,97.291,4.16902835]
[1770144425925,6.48993585,97.379,97.301,4.16902835]
[1770144425926,4.27943197,97.359,97.301,4.16902835]
[1770144426218,9.23886107,97.36,97.301,4.16902835]
[1770144426416,4.27943197,97.359,97.311,4.16902835]
[1770144426624,4.27943197,97.349,97.301,4.16902835]
[1770144426790,9.23886107,97.33,97.293,28.56]
[1770144426996,4.27943197,97.349,97.295,4.16902835]
[1770144427211,4.27943197,97.349,97.301,4.16902835]
[1770144427719,4.27943197,97.349,97.31,9.23886107]
[1770144427891,9.23886107,97.36,97.311,4.16902835]
[1770144428295,4.27943197,97.362,97.311,4.16902835]
[1770144428512,9.23886107,97.36,97.311,4.16902835]
[1770144428718,4.27943197,97.362,97.321,4.16902835]
[1770144429093,6.48993585,97.379,97.331,4.16902835]
[1770144429518,6.48993585,97.379,97.34,9.23886107]
[1770144429911,6.48993585,97.379,97.331,4.16902835]
[1770144430225,6.48993585,97.379,97.34,9.23886107]
[1770144430511,10.76936782,97.379,97.34,9.23886107]
[1770144430918,6.48993585,97.379,97.35,9.23886107]
[1770144431099,6.48993585,97.379,97.341,4.16902835]
[1770144431304,4.27943197,97.378,97.333,28.56]
[1770144431491,6.48993585,97.379,97.341,4.16902835]
[1770144431916,6.48993585,97.379,97.351,4.16902835]
[1770144432222,4.27943197,97.404,97.351,4.16902835]
[1770144432223,4.27943197,97.404,97.361,4.16902835]
[1770144432406,4.27943197,97.419,97.39,9.23886107]
[1770144432721,9.23886107,97.4,97.385,28.56]
[1770144433013,4.27943197,97.409,97.385,28.56]
[1770144433423,4.27943197,97.399,97.353,28.56]
[1770144433618,4.27943197,97.389,97.347,28.56]
[1770144433825,4.27943197,97.379,97.331,10.27414117]
[1770144434014,4.27943197,97.403,97.36,9.23886107]
[1770144434322,4.27943197,97.403,97.35,0.6909054]
[1770144434616,4.27943197,97.417,97.38,9.23886107]
[1770144434802,9.23886107,97.41,97.347,0.6909054]
[1770144434995,4.27943197,97.428,97.38,9.23886107]
[1770144435194,9.23886107,97.42,97.371,0.6909054]
[1770144435399,9.23886107,97.41,97.36,9.23886107]
[1770144435621,4.27943197,97.419,97.361,0.6909054]
[1770144435803,6.52793167,97.437,97.355,0.14216157]
[1770144435804,4.27943197,97.432,97.38,9.23886107]
[1770144436129,6.52793167,97.437,97.381,28.56]
[1770144436130,4.27943197,97.436,97.381,28.56]
[1770144436305,4.27943197,97.436,97.39,9.23886107]
[1770144436627,4.27943197,97.419,97.381,28.56]
[1770144437003,4.27943197,97.436,97.39,9.23886107]
[1770144437216,4.27943197,97.436,97.382,0.6909054]
[1770144437522,9.23886107,97.43,97.382,0.6909054]
[1770144438118,4.27943197,97.429,97.39,9.23886107]
[1770144438319,4.27943197,97.457,97.42,9.23886107]
[1770144438499,9.43886107,97.51,97.44,9.23886107]
[1770144438500,4.5,97.489,97.44,9.23886107]
[1770144438702,0.2,97.51,97.46,9.23886107]
[1770144438703,4.5,97.503,97.46,9.23886107]
[1770144439020,4.5,97.503,97.47,9.23886107]
[1770144439334,6.54231068,97.562,97.491,0.14216157]
[1770144439335,4.5,97.558,97.491,0.14216157]
[1770144439499,6.54231068,97.562,97.54,9.23886107]
[1770144439703,6.54231068,97.562,97.55,9.23886107]
[1770144439916,0.2,97.58,97.55,9.23886107]
[1770144440225,0.2,97.58,97.54,9.23886107]
[1770144440441,4.5,97.579,97.54,9.23886107]
[1770144440607,0.2,97.58,97.535,28.54]
[1770144440800,0.2,97.61,97.57,9.23886107]
[1770144441005,6.48198399,97.639,97.601,10.24579666]
[1770144441221,6.48198399,97.639,97.61,9.23886107]
[1770144441422,4.5,97.676,97.63,9.23886107]
[1770144441632,4.5,97.676,97.605,0.14216157]
[1770144441801,4.5,97.69,97.65,9.23886107]
[1770144442206,13.73886107,97.69,97.645,28.54]
[1770144442523,4.5,97.679,97.645,28.54]
[1770144442725,4.5,97.695,97.65,9.23886107]
[1770144442925,4.5,97.695,97.651,28.54]
[1770144443227,4.5,97.695,97.605,0.14216157]
[1770144443228,4.5,97.669,97.605,0.14216157]
[1770144443433,4.5,97.659,97.618,10.24396919]
[1770144443619,4.5,97.659,97.62,9.23886107]
[1770144443927,4.5,97.701,97.65,9.23886107]
[1770144444125,4.5,97.699,97.66,9.23886107]
[1770144444318,4.5,97.699,97.65,9.23886107]
[1770144444623,4.5,97.689,97.644,28.52]
[1770144444816,4.5,97.709,97.66,9.23886107]
[1770144445023,15.71021488,97.71,97.644,28.52]
[1770144445024,4.5,97.699,97.65,9.23886107]
[1770144445227,4.5,97.699,97.644,28.52]
[1770144445420,6.47135381,97.71,97.611,25.61186465]
[1770144445421,4.5,97.679,97.63,9.38102264]
[1770144445619,4.5,97.679,97.64,9.23886107]
[1770144445822,6.46902351,97.699,97.651,10.24055053]
[1770144446127,6.46902351,97.699,97.67,9.23886107]
[1770144446315,9.23886107,97.75,97.69,9.23886107]
[1770144446628,36.95544428,97.86,97.666,28.52]
[1770144446629,6.52675382,97.749,97.73,9.23886107]
[1770144446828,6.52675382,97.749,97.694,4.27527085]
[1770144446829,9.23886107,97.8,97.74,9.23886107]
[1770144447032,7.19946577,97.799,97.76,9.23886107]
[1770144447333,19.72,98.027,97.79,9.23886107]
[1770144447334,6.49425961,97.825,97.79,9.23886107]
[1770144447524,9.23886107,97.88,97.811,0.14216157]
[1770144447726,6.62001945,97.869,97.805,0.14216157]
[1770144447911,1e-08,97.85,97.794,4.27527085]
[1770144448114,4.5,97.849,97.791,28.5]
[1770144448320,4.5,97.839,97.791,28.5]
[1770144448510,9.23886107,97.81,97.761,0.14216157]
[1770144448932,9.23886107,97.8,97.762,28.5]
[1770144449231,4.5,97.84,97.76,28.5]
[1770144449431,4.5,97.795,97.76,28.5]
[1770144449617,9.23886107,97.79,97.76,28.5]
[1770144449933,9.23886107,97.78,97.746,28.48]
[1770144450139,4.5,97.759,97.643,40.96523055]
[1770144450312,4.5,97.744,97.676,28.48]
[1770144450519,4.5,97.739,97.68,9.23886107]
[1770144450717,4.5,97.756,97.71,9.23886107]
[1770144450917,4.5,97.779,97.694,4.27527085]
[1770144451116,4.5,97.779,97.721,0.14216157]
[1770144451416,13.73886107,97.75,97.693,28.48]
[1770144451616,9.23886107,97.76,97.694,28.48]
[1770144451942,6.47011335,97.789,97.661,28.48]
[1770144451943,9.23886107,97.73,97.661,28.48]
[1770144452141,4.5,97.739,97.68,9.23886107]
[1770144452316,9.23886107,97.73,97.68,9.23886107]
[1770144452515,4.5,97.785,97.67,9.23886107]
[1770144452716,9.23886107,97.72,97.67,9.23886107]
[1770144453130,4.5,97.709,97.662,28.48]
[1770144453433,4.5,97.709,97.664,10.23916716]
[1770144453635,4.5,97.709,97.662,28.48]
[1770144454335,4.5,97.725,97.67,9.23886107]
[1770144454537,4.5,97.725,97.68,9.23886107]
[1770144454729,4.5,97.725,97.662,28.48]
[1770144454730,13.73886107,97.71,97.662,38.71930192]
[1770144454923,4.5,97.729,97.68,9.23886107]
[1770144455120,4.5,97.729,97.662,28.48]
[1770144455121,4.5,97.745,97.684,4.27527085]
[1770144455323,4.5,97.745,97.71,9.23886107]
[1770144455533,4.5,97.784,97.74,9.23886107]
[1770144455719,6.47011335,97.789,97.741,28.60216157]
[1770144455921,6.47011335,97.789,97.76,9.23886107]
[1770144456122,6.47011335,97.789,97.742,28.46]
[1770144456123,4.5,97.779,97.742,28.46]
[1770144456327,4.5,97.779,97.742,26.11817106]
[1770144457962,4.28689349,97.789,97.77,9.23886107]
[1770144458321,4.28689349,97.789,97.758,2.18321986]
[1770144458545,4.28689349,97.789,97.77,9.23886107]
[1770144458736,4.28689349,97.789,97.76,37.69886107]
[1770144459045,4.1282844,97.789,97.744,0.14216157]
[1770144459229,4.1282844,97.789,97.77,9.23886107]
[1770144459624,6.48217757,97.847,97.78,9.23886107]
[1770144459924,4.5,97.819,97.781,28.46]
[1770144460138,4.5,97.809,97.759,28.46]
[1770144460338,4.5,97.789,97.759,28.46]
[1770144460539,4.5,97.841,97.76,15.89950312]
[1770144460739,4.5,97.809,97.76,15.89950312]
[1770144461143,4.5,97.824,97.79,15.89950312]
[1770144461346,6.48217757,97.847,97.811,0.14216157]
[1770144461546,16.09950312,97.87,97.811,0.14216157]
[1770144461547,0.2,97.87,97.811,0.14216157]
[1770144461842,1e-08,97.87,97.841,0.14216157]
[1770144462046,1e-08,97.87,97.815,4.27527085]
[1770144462227,4.5,97.859,97.81,15.89950312]
[1770144462424,1e-08,97.87,97.79,15.89950312]
[1770144462425,4.5,97.849,97.79,15.89950312]
[1770144462630,4.5,97.849,97.791,28.44]
[1770144462829,4.5,97.819,97.763,28.44]
[1770144463041,4.5,97.819,97.77,15.89950312]
[1770144463747,4.5,97.819,97.763,28.44]
[1770144463966,4.5,97.809,97.763,28.44]
[1770144464246,4.5,97.809,97.764,10.22871404]
[1770144464447,4.5,97.809,97.763,28.44]
[1770144464749,4.27527085,97.838,97.738,28.44]
[1770144464750,4.5,97.779,97.738,28.44]
[1770144464953,4.5,97.779,97.74,15.89950312]
[1770144465245,4.5,97.828,97.77,15.89950312]
[1770144465433,4.5,97.828,97.79,15.89950312]
[1770144465632,4.5,97.828,97.79,16.04166469]
[1770144465834,4.5,97.828,97.789,28.44]
[1770144466034,4.5,97.828,97.77,15.89950312]
[1770144466240,15.89950312,97.82,97.77,15.89950312]
[1770144466452,20.39950312,97.82,97.77,15.89950312]
[1770144466631,4.5,97.82,97.77,15.89950312]
[1770144466831,4.5,97.819,97.77,15.89950312]
[1770144467132,4.5,97.799,97.769,28.44]
[1770144468162,4.5,97.799,97.718,25.58377259]
[1770144468163,4.5,97.779,97.73,15.89950312]
[1770144468370,4.5,97.836,97.76,15.89950312]
[1770144468651,4.5,97.829,97.78,15.89950312]
[1770144469230,4.5,97.829,97.78,26.12654301]
[1770144469729,4.5,97.829,97.768,10.22822707]
[1770144469955,4.5,97.819,97.77,15.89950312]
[1770144470250,4.5,97.809,97.762,10.22882801]
[1770144470461,1e-08,97.87,97.761,28.44]
[1770144470658,4.5,97.829,97.78,15.89950312]
[1770144470964,4.5,97.829,97.774,10.2275768]
[1770144471256,4.5,97.819,97.78,15.89950312]
[1770144471460,4.5,97.819,97.774,10.22763678]
[1770144471640,4.5,97.819,97.79,15.89950312]
[1770144471950,4.5,97.829,97.78,15.89950312]
[1770144472329,4.5,97.819,97.78,15.89950312]
[1770144472989,4.5,97.819,97.771,10.22798171]
[1770144472990,4.5,97.848,97.8,15.89950312]
[1770144473130,4.5,97.848,97.801,28.42]
[1770144473334,4.5,97.848,97.802,28.42]
[1770144473755,4.5,97.848,97.802,38.64473978]
[1770144473948,4.5,97.848,97.81,15.89950312]
[1770144474154,4.5,97.869,97.81,15.89950312]
[1770144474452,15.89950313,97.87,97.81,15.89950312]
[1770144474453,4.5,97.859,97.81,15.89950312]
[1770144474659,4.5,97.859,97.803,28.42]
[1770144474836,4.5,97.829,97.803,28.42]
[1770144475153,4.5,97.829,97.728,1.02324819]
[1770144475354,4.5,97.809,97.761,0.14216157]
[1770144475539,4.5,97.809,97.766,10.22840594]
[1770144475738,4.5,97.809,97.743,25.57708556]
[1770144475739,4.5,97.809,97.75,15.89950312]
[1770144475942,4.5,97.809,97.764,10.22869562]
[1770144476152,4.5,97.809,97.771,10.22798171]
[1770144476460,4.5,97.809,97.764,28.42]
[1770144476637,4.5,97.799,97.764,28.42]
[1770144476842,15.89603058,97.79,97.764,28.42]
[1770144477048,4.27527085,97.844,97.764,28.42]
[1770144477049,4.5,97.789,97.764,28.42]
[1770144477240,4.5,97.789,97.741,0.14216157]
[1770144477446,4.5,97.789,97.74,15.89603058]
[1770144477447,4.5,97.789,97.742,28.42]
[1770144478363,4.5,97.779,97.742,28.42]
[1770144478745,4.5,97.779,97.744,10.2307221]
[1770144478952,4.5,97.779,97.749,10.23025656]
[1770144479149,4.5,97.779,97.742,28.42]
[1770144479452,4.5,97.799,97.75,15.89603058]
[1770144479845,4.5,97.789,97.742,28.42]
[1770144480457,4.5,97.769,97.724,28.42]
[1770144480657,4.5,97.759,97.724,28.42]
[1770144480842,4.5,97.739,97.691,10.23635749]
[1770144481043,4.5,97.739,97.692,28.42]
[1770144481238,4.27527085,97.779,97.652,4.35911057]
[1770144481239,10.46036414,97.7,97.652,4.35911057]
[1770144481459,4.5,97.709,97.661,10.23944068]
[1770144481662,10.46036414,97.69,97.66,0.2]
[1770144481854,10.46036414,97.7,97.66,0.2]
[1770144482057,4.5,97.709,97.66,4.55911057]
[1770144482258,4.31198737,97.669,97.625,10.24324397]
[1770144482562,10.46036414,97.65,97.609,28.42]
[1770144482767,10.46036414,97.64,97.59,4.35911057]
[1770144482943,10.46036414,97.64,97.598,0.14216157]
[1770144483144,10.46036414,97.64,97.596,4.35911057]
[1770144483340,10.46036414,97.63,97.585,28.42]
[1770144483546,10.46036414,97.63,97.582,4.35911057]
[1770144483760,5.36086188,97.678,97.582,4.35911057]
[1770144483761,10.46036414,97.62,97.582,4.35911057]
[1770144483963,4.27527085,97.675,97.597,90.75109998]
[1770144483964,4.18391702,97.609,97.597,90.75109998]
[1770144484167,4.14207784,97.594,97.535,4.35911057]
[1770144484461,10.46036414,97.59,97.541,4.35911057]
[1770144484664,10.46036414,97.57,97.541,4.35911057]
[1770144484851,10.46036414,97.55,97.51,93.66659317]
[1770144485162,10.46036414,97.57,97.521,4.35911057]
[1770144485552,4.10065706,97.577,97.521,4.35911057]
[1770144485866,28.44,97.634,97.51,99.76784674]
[1770144485867,10.46036414,97.53,97.51,89.3074826]
[1770144486049,4.27527085,97.579,97.492,4.35911057]
[1770144486050,10.46036414,97.54,97.492,4.35911057]
[1770144486369,10.46036414,97.53,97.492,4.35911057]
[1770144486665,10.46036414,97.53,97.481,4.35911057]
[1770144486853,10.46036414,97.51,97.481,4.35911057]
[1770144487378,10.46036414,97.49,97.452,4.35911057]